fUSD/lending_fUSD_20260412
["ID","MTS","AMOUNT","RATE_DAILY","PERIOD"]
[420295712,1775924842092,500.0,0.0003013,120]
[420295713,1775924960304,160.86,0.00030137,120]
[420295714,1775925031625,-500.27227,8.626e-05,2]
[420295715,1775925031635,-273.0,8.626e-05,2]
[420295716,1775925031662,-2426.32,8.632e-05,2]
[420295717,1775925031673,-250.0,8.67e-05,2]
[420295718,1775925031682,-500.0,8.693e-05,2]
[420295719,1775925031698,-313.41770673,8.696e-05,2]
[420295720,1775925031708,-1200.0,8.713e-05,2]
[420295721,1775925031717,-500.0,8.714e-05,2]
[420295722,1775925031727,-5000.0,8.714e-05,2]
[420295723,1775925031755,-200.85971444,8.714e-05,2]
[420295724,1775925031769,-300.0,8.819e-05,2]
[420295725,1775925031780,-300.0,8.819e-05,2]
[420295726,1775925031795,-300.0,8.819e-05,2]
[420295727,1775925031818,-300.0,8.819e-05,2]
[420295728,1775925031827,-415.0,8.82e-05,2]
[420295729,1775925031837,-5126.72612859,8.821e-05,2]
[420295730,1775925031853,-927.42,9.247e-05,2]
[420295731,1775925031871,-155.79,9.352e-05,2]
[420295732,1775925031882,-150.0,9.411e-05,2]
[420295733,1775925031892,-193.0,9.488e-05,2]
[420295734,1775925031902,-250.0,9.537e-05,2]
[420295735,1775925031912,-500.0,9.573e-05,2]
[420295736,1775925031922,-500.0,9.573e-05,2]
[420295737,1775925031933,-159.976,9.573e-05,2]
[420295738,1775925031945,-159.976,9.573e-05,2]
[420295739,1775925031967,-160.003998,9.573e-05,2]
[420295741,1775925031978,-317.95866,9.573e-05,2]
[420295743,1775925031989,-159.9795,9.573e-05,2]
[420295745,1775925032006,-157.49225069,9.573e-05,2]
[420295747,1775925032021,-159.984,9.573e-05,2]
[420295749,1775925032032,-500.51505804,9.573e-05,2]
[420295751,1775925032075,-159.976,9.573e-05,2]
[420295753,1775925032111,-349.14987639,9.573e-05,2]
[420295754,1775925032123,-500.0,9.573e-05,2]
[420295756,1775925032166,-611.49054865,9.573e-05,2]
[420295774,1775925032390,-500.0,9.573e-05,2]
[420295776,1775925032411,-1680.0,9.584e-05,2]
[420295778,1775925032422,-150.0,9.584e-05,2]
[420295780,1775925032432,-2497.2152116,9.585e-05,2]
[420295782,1775925032441,-193.0,9.585e-05,2]
[420295784,1775925032461,-5000.0,9.585e-05,2]
[420295786,1775925032471,-151.0,9.597e-05,2]
[420295788,1775925032482,-151.0,9.597e-05,2]
[420295790,1775925032497,-151.0,9.597e-05,2]
[420295792,1775925032508,-500.0,9.599e-05,2]
[420295793,1775925032517,-1745.069,9.599e-05,2]
[420295795,1775925032530,-162.152,9.599e-05,2]
[420295797,1775925032550,-839.65,9.599e-05,2]
[420295798,1775925032564,-500.0,9.599e-05,2]
[420295799,1775925032587,-500.0,9.599e-05,2]
[420295800,1775925032597,-500.0,9.599e-05,2]
[420295801,1775925032607,-500.0,9.599e-05,2]
[420295802,1775925032624,-500.0,9.599e-05,2]
[420295803,1775925032633,-500.0,9.599e-05,2]
[420295804,1775925032643,-500.0,9.599e-05,2]
[420295805,1775925032653,-500.0,9.599e-05,2]
[420295806,1775925032670,-500.0,9.599e-05,2]
[420295807,1775925032680,-500.0,9.599e-05,2]
[420295808,1775925032690,-500.0,9.599e-05,2]
[420295809,1775925032701,-500.0,9.599e-05,2]
[420295810,1775925032727,-500.0,9.599e-05,2]
[420295811,1775925032738,-500.0,9.599e-05,2]
[420295812,1775925032747,-500.0,9.599e-05,2]
[420295814,1775925032766,-500.0,9.599e-05,2]
[420295816,1775925032775,-500.0,9.599e-05,2]
[420295818,1775925032787,-500.0,9.599e-05,2]
[420295820,1775925032803,-427.21736836,9.599e-05,2]
[420295822,1775925032816,-500.0,9.599e-05,2]
[420295824,1775925032832,-500.0,9.599e-05,2]
[420295826,1775925032846,-500.0,9.599e-05,2]
[420295828,1775925032860,-500.0,9.599e-05,2]
[420295830,1775925032887,-500.0,9.599e-05,2]
[420295832,1775925032896,-500.0,9.599e-05,2]
[420295834,1775925032906,-500.0,9.599e-05,2]
[420295836,1775925032928,-500.0,9.599e-05,2]
[420295837,1775925032938,-500.0,9.599e-05,2]
[420295838,1775925032947,-500.0,9.599e-05,2]
[420295839,1775925032976,-350.0,9.599e-05,2]
[420295840,1775925033006,-500.0,9.599e-05,2]
[420295841,1775925033028,-500.0,9.599e-05,2]
[420295842,1775925033043,-500.0,9.599e-05,2]
[420295843,1775925033064,-500.0,9.599e-05,2]
[420295844,1775925033073,-500.0,9.599e-05,2]
[420295845,1775925033112,-517.57641388,9.599e-05,2]
[420295846,1775925033124,-500.0,9.599e-05,2]
[420295847,1775925033138,-238.16670877,9.599e-05,2]
[420295848,1775925033198,-261.83329123,9.599e-05,2]
[420295849,1775925033210,-500.0,9.599e-05,2]
[420295850,1775925033221,-500.0,9.599e-05,2]
[420295851,1775925033262,-500.0,9.599e-05,2]
[420295852,1775925033320,-500.0,9.599e-05,2]
[420295853,1775925033329,-500.0,9.599e-05,2]
[420295854,1775925033343,-500.0,9.599e-05,2]
[420295855,1775925033364,-500.0,9.599e-05,2]
[420295856,1775925033373,-500.0,9.599e-05,2]
[420295857,1775925033410,-500.0,9.599e-05,2]
[420295858,1775925033421,-500.0,9.599e-05,2]
[420295859,1775925033451,-500.0,9.599e-05,2]
[420295860,1775925033460,-500.0,9.599e-05,2]
[420295861,1775925033492,-500.0,9.599e-05,2]
[420295862,1775925033502,-500.0,9.599e-05,2]
[420295863,1775925033524,-500.0,9.599e-05,2]
[420295864,1775925033535,-500.0,9.599e-05,2]
[420295865,1775925033545,-500.0,9.599e-05,2]
[420295866,1775925033561,-500.0,9.599e-05,2]
[420295867,1775925033581,-500.0,9.599e-05,2]
[420295868,1775925033598,-356.50326885,9.599e-05,2]
[420295869,1775925033607,-500.0,9.599e-05,2]
[420295870,1775925033617,-500.0,9.599e-05,2]
[420295871,1775925033632,-500.0,9.599e-05,2]
[420295872,1775925033643,-500.0,9.599e-05,2]
[420295873,1775925033653,-500.0,9.599e-05,2]
[420295874,1775925033664,-500.0,9.599e-05,2]
[420295875,1775925033699,-500.0,9.599e-05,2]
[420295876,1775925033722,-500.0,9.599e-05,2]
[420295877,1775925033734,-500.0,9.599e-05,2]
[420295878,1775925033761,-500.0,9.599e-05,2]
[420295879,1775925033784,-500.0,9.599e-05,2]
[420295880,1775925033794,-500.0,9.599e-05,2]
[420295881,1775925033805,-500.0,9.599e-05,2]
[420295882,1775925033825,-500.0,9.599e-05,2]
[420295883,1775925033836,-200.0,9.599e-05,2]
[420295884,1775925033845,-500.0,9.599e-05,2]
[420295885,1775925033865,-500.0,9.599e-05,2]
[420295886,1775925033875,-500.0,9.599e-05,2]
[420295887,1775925033897,-267.1875806,9.599e-05,2]
[420295888,1775925033906,-500.0,9.599e-05,2]
[420295889,1775925033917,-290.5476369,9.599e-05,2]
[420295890,1775925033935,-309.42434094,9.599e-05,2]
[420295891,1775925033948,-376.90965328,9.669e-05,2]
[420295892,1775925033961,-3495.72,9.67e-05,2]
[420295893,1775925033978,-150.99,9.67e-05,2]
[420295894,1775925033989,-7366.23327394,9.67e-05,2]
[420295895,1775925034013,-74.68672606,9.67e-05,2]
[420295896,1775925034029,-420.0,9.701e-05,2]
[420295897,1775925034059,-420.0,9.701e-05,2]
[420295898,1775925034068,-300.0,9.701e-05,2]
[420295899,1775925034080,-839.65,9.873e-05,2]
[420295900,1775925034103,-400.0,9.9e-05,3]
[420295901,1775925034112,-151.0,9.993e-05,2]
[420295902,1775925034123,-151.0,9.993e-05,2]
[420295903,1775925034153,-500.0,9.994e-05,2]
[420295904,1775925034162,-500.0,9.994e-05,2]
[420295905,1775925034180,-500.0,9.994e-05,2]
[420295906,1775925034197,-500.0,9.994e-05,2]
[420295907,1775925034206,-500.0,9.994e-05,2]
[420295908,1775925034224,-359.15753433,9.994e-05,2]
[420295909,1775925034241,-400.4988552,9.994e-05,2]
[420295910,1775925034269,-500.0,9.994e-05,2]
[420295911,1775925034279,-628.96825769,9.994e-05,2]
[420295912,1775925034293,-500.0,9.994e-05,2]
[420295913,1775925034317,-500.0,9.994e-05,2]
[420295914,1775925034328,-186.42782572,9.994e-05,2]
[420295915,1775925034340,-500.0,9.995e-05,2]
[420295916,1775925034357,-500.0,9.995e-05,2]
[420295917,1775925034379,-500.0,9.995e-05,2]
[420295918,1775925034392,-500.0,9.995e-05,2]
[420295919,1775925034414,-284.42988851,0.0001,2]
[420295920,1775925034424,-900.0,0.0001,3]
[420295921,1775925034452,-151.0,0.0001,2]
[420295922,1775925034476,-151.0,0.0001,2]
[420295923,1775925034485,-151.0,0.0001,2]
[420295924,1775925034494,-151.0,0.0001,2]
[420295925,1775925034511,-151.0,0.0001,2]
[420295926,1775925034521,-151.0,0.0001,2]
[420295927,1775925034530,-151.0,0.0001,2]
[420295928,1775925034539,-151.0,0.0001,2]
[420295929,1775925034559,-151.0,0.0001,2]
[420295930,1775925034568,-151.0,0.0001,2]
[420295931,1775925034578,-151.0,0.0001,2]
[420295932,1775925034587,-151.0,0.0001,2]
[420295933,1775925034605,-151.0,0.0001,2]
[420295934,1775925034614,-151.0,0.0001,2]
[420295935,1775925034624,-1413.81744411,0.0001,2]
[420295936,1775925034639,-1000.0,0.00010096,2]
[420295937,1775925034654,-150.0,0.000101,2]
[420295938,1775925034672,-614.19910851,0.00010121,2]
[420295939,1775925034681,-500.0,0.00010121,2]
[420295940,1775925034694,-1000.0,0.00010121,2]
[420295941,1775925034704,-1000.0,0.00010121,2]
[420295942,1775925034717,-839.65,0.00010147,2]
[420295943,1775925034735,-151.0,0.00010248,2]
[420295944,1775925034745,-839.65,0.00010421,2]
[420295945,1775925034754,-2351.0,0.00010542,2]
[420295946,1775925034770,-255.0,0.00010542,2]
[420295947,1775925034780,-500.0,0.00010668,2]
[420295948,1775925034790,-587.0,0.00010671,2]
[420295949,1775925034803,-839.65,0.00010695,2]
[420295950,1775925034814,-151.0,0.00010707,2]
[420295951,1775925034824,-22714.93646876,0.0001071,2]
[420295952,1775925034837,-51826.77442072,0.0001071,2]
[420295953,1775925034853,-1100.0,0.0001071,2]
[420295954,1775925034873,-748.80436,0.0001071,2]
[420295955,1775925034886,-735.86868897,0.0001071,2]
[420295956,1775925034912,-1663.20359451,0.0001071,2]
[420295957,1775925034926,-24416.10246704,0.0001071,2]
[420295958,1775925034946,-578.20924308,0.00010804,2]
[420295959,1775925034957,-1091.25050756,0.00010804,2]
[420295960,1775925034969,-500.0,0.00010804,2]
[420295961,1775925034979,-500.0,0.00010804,2]
[420295962,1775925034997,-500.0,0.00010804,2]
[420295963,1775925035006,-500.0,0.00010804,2]
[420295964,1775925035021,-500.0,0.00010804,2]
[420295965,1775925035041,-500.0,0.00010804,2]
[420295966,1775925035051,-500.0,0.00010804,2]
[420295967,1775925035065,-500.0,0.00010804,2]
[420295968,1775925035093,-500.0,0.00010804,2]
[420295969,1775925035102,-500.0,0.00010804,2]
[420295970,1775925035120,-500.0,0.00010804,2]
[420295971,1775925035132,-500.0,0.00010804,2]
[420295972,1775925035142,-500.0,0.00010804,2]
[420295973,1775925035161,-174.61919141,0.00010804,2]
[420295974,1775925035183,-155.79,0.0001091,2]
[420295975,1775925035201,-839.65,0.00010969,2]
[420295976,1775925035213,-19523.56721954,0.00011099,2]
[420295977,1775925035225,-15470.12515998,0.00011099,2]
[420295978,1775925035237,-151.0,0.00011099,2]
[420295979,1775925035270,-151.0,0.00011099,2]
[420295980,1775925035279,-839.65,0.00011243,2]
[420295981,1775925035290,-246.46277885,0.00011352,2]
[420295982,1775925035306,-234.71616182,0.00011444,2]
[420295983,1775925035328,-171.6642,0.000115,2]
[420295984,1775925035338,-2417.28,0.00011507,2]
[420295985,1775925035350,-839.65181181,0.00011517,2]
[420295986,1775925035369,-19523.56721953,0.00011544,2]
[420295987,1775925035383,-15470.12515992,0.00011551,2]
[420295988,1775925035398,-3292.0,0.00011597,2]
[420295989,1775925035426,-433.0,0.00011597,2]
[420295990,1775925035436,-823.0,0.00011738,2]
[420295991,1775925035455,-155.79,0.00012469,2]
[420295992,1775925035467,-481.0,0.0001248,5]
[420295993,1775925035477,-4464.0,0.00012756,2]
[420295994,1775925035505,-736.0,0.00012756,2]
[420295995,1775925035516,-196.4574,0.000128,2]
[420295996,1775925035527,-1600.0,0.00012819,2]
[420295997,1775925035542,-1152.0,0.00012912,2]
[420295998,1775925035573,-250.0,0.00013,2]
[420295999,1775925035586,-1000.0,0.000131,2]
[420296000,1775925035607,-313.0,0.000131,2]
[420296001,1775925035618,-917.0,0.000131,2]
[420296002,1775925035631,-19523.56721953,0.00013189,2]
[420296003,1775925035666,-6687.09595304,0.00013325,2]
[420296004,1775925035678,-3240.0,0.00013425,2]
[420296005,1775925035691,-15470.12515992,0.00013532,2]
[420296006,1775925035714,-599.60298507,0.00013543,2]
[420296007,1775925035727,-500.0,0.00013698,2]
[420296008,1775925035739,-500.0,0.00013698,2]
[420296009,1775925035763,-500.0,0.00013698,2]
[420296010,1775925035778,-503.38712912,0.00013698,2]
[420296011,1775925035809,-501.37,0.00013698,2]
[420296012,1775925035822,-501.37,0.00013698,2]
[420296013,1775925035831,-501.37,0.00013698,2]
[420296014,1775925035858,-501.37,0.00013698,2]
[420296015,1775925035868,-501.37,0.00013698,2]
[420296016,1775925035878,-500.0,0.00013698,2]
[420296017,1775925035902,-196.46126637,0.00013698,2]
[420296018,1775925035926,-500.0,0.00013698,2]
[420296019,1775925035946,-500.0,0.00013698,2]
[420296020,1775925035968,-500.0,0.00013698,2]
[420296021,1775925036001,-500.0,0.00013698,2]
[420296022,1775925036031,-500.0,0.00013698,2]
[420296023,1775925036055,-500.0,0.00013698,2]
[420296024,1775925036074,-500.0,0.00013698,2]
[420296025,1775925036101,-500.0,0.00013698,2]
[420296026,1775925036114,-500.0,0.00013698,2]
[420296027,1775925036128,-500.0,0.00013698,2]
[420296028,1775925036144,-602.21593845,0.00013698,2]
[420296029,1775925036177,-500.0,0.00013698,2]
[420296030,1775925036187,-500.0,0.00013698,2]
[420296031,1775925036203,-500.0,0.00013698,2]
[420296032,1775925036215,-500.0,0.00013698,2]
[420296033,1775925036225,-530.38,0.00013698,2]
[420296034,1775925036235,-530.38,0.00013698,2]
[420296035,1775925036252,-530.38,0.00013698,2]
[420296036,1775925036262,-530.38,0.00013698,2]
[420296037,1775925036289,-530.38,0.00013698,2]
[420296038,1775925036299,-530.38,0.00013698,2]
[420296039,1775925036309,-1510.72,0.00013698,2]
[420296040,1775925036326,-1510.72,0.00013698,2]
[420296041,1775925036336,-1510.72,0.00013698,2]
[420296042,1775925036346,-1510.72,0.00013698,2]
[420296043,1775925036356,-1510.72,0.00013698,2]
[420296044,1775925036373,-1510.72,0.00013698,2]
[420296045,1775925036383,-500.0,0.00013698,2]
[420296046,1775925036401,-500.0,0.00013698,2]
[420296047,1775925036411,-500.0,0.00013698,2]
[420296048,1775925036423,-500.0,0.00013698,2]
[420296049,1775925036440,-500.0,0.00013698,2]
[420296050,1775925036456,-500.0,0.00013698,2]
[420296051,1775925036467,-240.11431181,0.00013698,2]
[420296052,1775925036483,-500.0,0.00013698,2]
[420296053,1775925036494,-200.0,0.00013699,2]
[420296054,1775925036505,-371.37428515,0.00013699,2]
[420296055,1775925036869,-500.0,0.00013699,2]
[420296056,1775925037011,-151.0,0.00013699,2]
[420296057,1775925037022,-786.31,0.00013699,2]
[420296058,1775925037064,-1087.52107306,0.00013699,2]
[420296059,1775925037074,-6389.03,0.000137,2]
[420296060,1775925037089,-786.31,0.00013973,2]
[420296061,1775925037129,-155.79,0.00014027,2]
[420296062,1775925037148,-1252.0,0.00014031,2]
[420296063,1775925037171,-247.3,0.00014053,2]
[420296064,1775925037184,-247.3,0.00014053,2]
[420296065,1775925037205,-247.3,0.00014053,2]
[420296066,1775925037218,-247.3,0.00014053,2]
[420296067,1775925037250,-247.3,0.00014053,2]
[420296068,1775925037262,-247.3,0.00014053,2]
[420296069,1775925037285,-247.3,0.00014053,2]
[420296070,1775925037297,-247.3,0.00014053,2]
[420296071,1775925037311,-247.2,0.00014053,2]
[420296072,1775925037327,-224.8314,0.000142,2]
[420296073,1775925037337,-1613.0,0.00014203,2]
[420296074,1775925037350,-500.0,0.00014247,2]
[420296075,1775925037378,-786.31,0.00014247,2]
[420296076,1775925037390,-1600.0,0.00014421,2]
[420296077,1775925037400,-2161.8,0.00014504,2]
[420296078,1775925037423,-261.1,0.00014521,2]
[420296079,1775925037453,-202.159172,0.00014537,2]
[420296080,1775925037464,-358.300703,0.00014537,7]
[420296081,1775925037484,-260.595806,0.00014537,2]
[420296082,1775925037510,-500.0,0.00014599,2]
[420296083,1775925037521,-500.0,0.00014599,2]
[420296084,1775925037541,-500.0,0.00014599,2]
[420296085,1775925037551,-500.0,0.00014599,2]
[420296086,1775925037560,-500.0,0.00014599,2]
[420296087,1775925037573,-500.0,0.00014599,2]
[420296088,1775925037590,-500.0,0.00014599,2]
[420296089,1775925037612,-500.0,0.00014599,2]
[420296090,1775925037628,-500.0,0.00014599,2]
[420296091,1775925037639,-500.0,0.00014599,2]
[420296092,1775925037663,-500.0,0.00014599,2]
[420296093,1775925037674,-500.0,0.00014599,2]
[420296095,1775925037685,-500.0,0.00014599,2]
[420296097,1775925037714,-500.0,0.00014599,2]
[420296099,1775925037724,-500.0,0.00014599,2]
[420296101,1775925037757,-500.0,0.00014599,2]
[420296103,1775925037768,-500.0,0.00014599,2]
[420296104,1775925037778,-500.0,0.00014599,2]
[420296105,1775925037802,-500.0,0.00014599,2]
[420296106,1775925037811,-500.0,0.00014599,2]
[420296107,1775925037820,-500.0,0.00014599,2]
[420296108,1775925037852,-500.0,0.00014599,2]
[420296109,1775925037862,-500.0,0.00014599,2]
[420296110,1775925037873,-500.0,0.00014599,2]
[420296111,1775925037883,-500.0,0.00014599,2]
[420296112,1775925037903,-500.0,0.00014599,2]
[420296113,1775925037913,-531.94,0.00014599,2]
[420296114,1775925037923,-19523.56721953,0.00014833,2]
[420296115,1775925037949,-716.90484127,0.00014858,2]
[420296116,1775925037959,-289.15810347,0.00014858,2]
[420296117,1775925037991,-160.0,0.000149,7]
[420296118,1775925038001,-381.402527,0.000149,7]
[420296119,1775925038038,-602.805055,0.000149,7]
[420296120,1775925038051,-228.38661448,0.00014959,2]
[420296121,1775925038062,-150.00000001,0.00014979,2]
[420296122,1775925038078,-271.11576344,0.00014979,2]
[420296123,1775925038092,-300.0,0.00015,2]
[420296124,1775925038102,-190.94170908,0.00015095,2]
[420296125,1775925038121,-420.0,0.00015204,2]
[420296126,1775925038131,-420.0,0.0001522,2]
[420296127,1775925038144,-192.735,0.00015225,2]
[420296128,1775925038158,-1264.0,0.00015225,2]
[420296129,1775925038190,-1218.0,0.00015225,2]
[420296130,1775925038200,-926.0,0.00015225,2]
[420296131,1775925038215,-1347.0,0.00015225,2]
[420296132,1775925038230,-622.0,0.00015225,2]
[420296133,1775925038241,-1000.0,0.00015255,2]
[420296134,1775925038251,-420.0,0.00015258,2]
[420296135,1775925038274,-162.863955,0.00015263,7]
[420296136,1775925038295,-1000.0,0.00015286,2]
[420296137,1775925038305,-391.0,0.00015288,5]
[420296138,1775925038316,-1884.14807254,0.00015288,2]
[420296139,1775925038347,-6687.09595302,0.00015336,2]
[420296140,1775925038357,-375.07241656,0.00015379,2]
[420296141,1775925038367,-420.0,0.00015394,2]
[420296142,1775925038384,-1000.0,0.000154,2]
[420296143,1775925038397,-1000.0,0.00015416,2]
[420296144,1775925038407,-420.0,0.00015423,2]
[420296145,1775925038422,-2000.0,0.0001544,2]
[420296146,1775925038437,-2000.0,0.0001544,2]
[420296147,1775925038448,-1851.0,0.0001544,2]
[420296148,1775925038476,-1000.0,0.00015441,2]
[420296150,1775925038487,-168.0,0.00015446,2]
[420296151,1775925038506,-2000.0,0.0001545,2]
[420296152,1775925038521,-163.512,0.0001546,2]
[420296153,1775925038534,-163.512,0.0001547,2]
[420296154,1775925038554,-464.05468515,0.00015483,2]
[420296155,1775925038568,-926.57818174,0.00015489,2]
[420296156,1775925038589,-250.0,0.0001549,2]
[420296157,1775925038602,-250.0,0.0001549,2]
[420296158,1775925038638,-250.0,0.0001549,2]
[420296159,1775925038649,-420.0,0.00015494,2]
[420296160,1775925038673,-1510.72,0.00015499,2]
[420296161,1775925038685,-257.3034,0.000155,2]
[420296162,1775925038696,-5000.0,0.000155,2]
[420296163,1775925038717,-5169.01512254,0.000155,2]
[420296165,1775925038728,-2752.0,0.00015507,2]
[420296167,1775925038753,-151.0,0.0001551,2]
[420296169,1775925038764,-15470.12515992,0.00015513,2]
[420296171,1775925038775,-241.4870012,0.00015517,2]
[420296173,1775925038792,-6389.03,0.00015549,2]
[420296175,1775925038807,-12403.8780471,0.00015559,2]
[420296177,1775925038818,-530.38,0.00015598,2]
[420296179,1775925038835,-591.95860575,0.00015598,2]
[420296181,1775925038860,-785.61,0.00015599,2]
[420296183,1775925038874,-785.61,0.00015599,2]
[420296185,1775925038886,-785.61,0.00015599,2]
[420296187,1775925038898,-785.61,0.00015599,2]
[420296189,1775925038915,-501.37,0.00015599,2]
[420296191,1775925038926,-501.37,0.00015599,2]
[420296193,1775925038937,-501.37,0.00015599,2]
[420296195,1775925038953,-501.37,0.00015599,2]
[420296197,1775925038967,-501.37,0.00015599,2]
[420296199,1775925038978,-501.37,0.00015599,2]
[420296201,1775925039004,-501.37,0.00015599,2]
[420296204,1775925039029,-501.37,0.00015599,2]
[420296206,1775925039053,-501.37,0.00015599,2]
[420296209,1775925039069,-500.0,0.00015599,2]
[420296211,1775925039083,-500.0,0.00015599,2]
[420296213,1775925039114,-500.0,0.00015599,2]
[420296215,1775925039168,-313.31129605,0.00015599,2]
[420296217,1775925039180,-2000.0,0.00015599,2]
[420296219,1775925039191,-2000.0,0.00015599,2]
[420296221,1775925039207,-2000.0,0.00015599,2]
[420296223,1775925039219,-530.38,0.00015599,2]
[420296225,1775925039229,-530.38,0.00015599,2]
[420296227,1775925039243,-530.38,0.00015599,2]
[420296229,1775925039253,-530.38,0.00015599,2]
[420296231,1775925039265,-530.38,0.00015599,2]
[420296233,1775925039284,-530.38,0.00015599,2]
[420296235,1775925039294,-530.38,0.00015599,2]
[420296237,1775925039304,-530.38,0.00015599,2]
[420296239,1775925039314,-1510.72,0.00015599,2]
[420296241,1775925039329,-1510.72,0.00015599,2]
[420296243,1775925039340,-1510.72,0.00015599,2]
[420296245,1775925039351,-1510.72,0.00015599,2]
[420296248,1775925039365,-1510.72,0.00015599,2]
[420296249,1775925039375,-1510.72,0.00015599,2]
[420296252,1775925039386,-1510.72,0.00015599,2]
[420296254,1775925039397,-1510.72,0.00015599,2]
[420296255,1775925039411,-1510.72,0.00015599,2]
[420296257,1775925039429,-150.0,0.00015599,2]
[420296259,1775925039440,-196899.21077491,0.000156,2]
[420296366,1775925041104,-959.2199582,0.000156,2]
[420296369,1775925041128,-1413.84086943,0.000156,2]
[420296371,1775925041141,-488.47721465,0.000156,2]
[420296373,1775925041157,-279.79428379,0.000156,2]
[420296376,1775925041180,-1675.51726259,0.000156,2]
[420296378,1775925041203,-555.59417147,0.000156,2]
[420296381,1775925041238,-1300.57826522,0.000156,2]
[420296481,1775925042729,-622.0,0.00015506,2]
[420296483,1775925042742,-221.81272428,0.0001559,2]
[420296485,1775925042752,-3.18727572,0.000156,2]
[420296488,1775925042775,-550.51168007,0.000156,2]
[420296490,1775925042789,-1141.47131779,0.000156,2]
[420296501,1775925042851,-518.0,0.00015506,2]
[420296504,1775925042861,-546.40417485,0.000156,2]
[420296507,1775925042872,-33833.98291723,0.000156,2]
[420296677,1775925045745,-416.92837952,8.67e-05,2]
[420296731,1775925053003,5304.50861062,0.0003,120]
[420296733,1775925359963,376.20357192,0.00029807,120]
[420296734,1775925397287,449.41,6.506e-05,2]
[420296735,1775925397532,449.41,6.849e-05,2]
[420296736,1775925397709,449.41,7.191e-05,2]
[420296737,1775925397964,449.41,7.534e-05,2]
[420296738,1775925398153,449.41,7.876e-05,2]
[420296739,1775925398366,449.41,8.219e-05,2]
[420296740,1775925538930,7381.97300854,0.000298,120]
[420296741,1775925632438,554.01,0.0002963,120]
[420296742,1775925701022,500.0,0.0002963,120]
[420296743,1775925832598,2000.0,0.00030136,120]
[420296744,1775925843410,500.0,0.0003013,120]
[420296745,1775926067483,851.14,0.00030137,120]
[420296746,1775926089824,638.36,0.00030137,120]
[420296752,1775926113321,957.53,8.547e-05,2]
[420296762,1775926231843,-1310.71,8.561e-05,2]
[420296764,1775926231862,-250.0,8.561e-05,2]
[420296766,1775926231882,-20.46296328,8.561e-05,2]
[420296769,1775926231912,-428.94703672,8.561e-05,2]
[420296771,1775926231922,-25.08243853,8.767e-05,2]
[420296773,1775926231966,-224.91756147,8.767e-05,2]
[420296775,1775926231985,-481.57243853,8.767e-05,2]
[420296777,1775926231999,-749.6440699,8.767e-05,2]
[420296778,1775926232039,-1481.97852196,8.767e-05,2]
[420296779,1775926232049,-449.41,8.904e-05,2]
[420296780,1775926232065,-233.76698089,8.904e-05,2]
[420296781,1775926232091,-348.17644189,9.246e-05,2]
[420296782,1775926232115,-101.23355811,9.246e-05,2]
[420296783,1775926232132,-383.2872359,9.415e-05,2]
[420296784,1775926232151,-802.76289887,9.415e-05,2]
[420296785,1775926232166,-13.94986523,9.415e-05,2]
[420296786,1775926232179,-300.0,9.416e-05,2]
[420296787,1775926232191,-300.0,9.416e-05,2]
[420296788,1775926232200,-300.0,9.416e-05,2]
[420296789,1775926232209,-104.75013477,9.417e-05,2]
[420296790,1775926232230,-88.24986523,9.417e-05,2]
[420296791,1775926232240,-155.80840127,9.417e-05,2]
[420296792,1775926232257,-101.13901939,9.417e-05,2]